bitfinex/quotes_ETHUSD_20230113
["timestamp","ask_amount","ask_price","bid_price","bid_amount"]
[1673626876812,7.60190914,1411.6,1411.5,6.66162973]
[1673626877383,7.60190914,1411.6,1411.5,13.74628973]
[1673626878057,7.60190914,1411.6,1411.5,27.91560973]
[1673626878509,7.60190914,1411.6,1411.5,20.83094973]
[1673626878950,7.60190914,1411.6,1411.5,0.066]
[1673626879112,7.60190914,1411.6,1411.3,0.066]
[1673626879113,29.61950878,1411.6,1411.3,0.066]
[1673626879321,29.61950878,1411.6,1411.3,3.60633272]
[1673626879322,2.5,1411.5,1411.3,3.60633272]
[1673626879787,14.16969,1411.5,1411.3,3.60633272]
[1673626879998,14.23569,1411.5,1411.3,3.60633272]
[1673626881000,21.32071,1411.5,1411.3,3.60633272]
[1673626881211,0.066,1411.5,1411.3,3.60633272]
[1673626881421,36.37935914,1411.6,1411.3,3.60633272]
[1673626881627,36.37935914,1411.6,1411.4,3.60633272]
[1673626881872,28.85435914,1411.6,1411.4,3.60633272]
[1673626882100,21.77020914,1411.6,1411.3,0.43323327]
[1673626882317,2.5,1411.5,1411.2,3.0]
[1673626882475,2.5,1411.5,1411.2,6.60633272]
[1673626882476,21.25548,1411.4,1411.2,6.60633272]
[1673626882835,7.15116,1411.4,1411.2,6.67233272]
[1673626883418,0.066,1411.4,1411.2,6.67233272]
[1673626883645,2.566,1411.5,1411.2,8.04820499]
[1673626883839,2.5,1411.5,1411.2,8.04820499]
[1673626884048,9.58478,1411.5,1411.2,8.04820499]
[1673626884305,7.15078,1411.5,1411.2,15.13430499]
[1673626884529,14.23563,1411.5,1411.2,8.04820499]
[1673626884833,0.066,1411.5,1411.3,18.58247322]
[1673626884991,30.40070914,1411.6,1411.3,18.64847322]
[1673626884992,30.46670914,1411.6,1411.3,18.64847322]
[1673626885198,30.46670914,1411.6,1411.4,3.60633272]
[1673626885412,30.46670914,1411.6,1411.5,3.60633272]
[1673626885626,7.60190914,1411.6,1411.5,3.60633272]
[1673626885870,14.68605914,1411.6,1411.5,3.60633272]
[1673626886619,7.60190914,1411.6,1411.5,3.60633272]
[1673626887776,7.60190914,1411.6,1411.5,5.50165467]
[1673626887967,7.60190914,1411.6,1411.5,12.65031467]
[1673626888303,7.60190914,1411.6,1411.5,3.67233272]
[1673626888458,7.60190914,1411.6,1411.5,3.60633272]
[1673626889249,7.60190914,1411.6,1411.5,17.77565272]
[1673626889436,7.60190914,1411.6,1411.5,17.84165272]
[1673626889646,7.60190914,1411.6,1411.5,3.67233272]
[1673626889831,7.60190914,1411.6,1411.5,3.60633272]
[1673626892350,7.60190914,1411.6,1411.5,10.69099272]
[1673626892564,7.60190914,1411.6,1411.5,10.75699272]
[1673626892771,7.60190914,1411.6,1411.5,3.67233272]
[1673626892977,7.60190914,1411.6,1411.5,3.60633272]
[1673626893221,7.60190914,1411.6,1411.5,10.69099272]
[1673626893440,7.60190914,1411.6,1411.5,10.75699272]
[1673626894457,7.59981474,1411.6,1411.5,26.68646112]
[1673626895920,7.59981474,1411.6,1411.5,34.82906052]
[1673626896171,7.59981474,1411.6,1411.5,28.42227331]
[1673626896395,7.59981474,1411.6,1411.5,28.29046112]
[1673626897645,7.59981474,1411.6,1411.5,29.34840052]
[1673626897965,7.59981474,1411.6,1411.5,26.95247969]
[1673626898176,7.59981474,1411.6,1411.5,28.01041909]
[1673626898332,7.59981474,1411.6,1411.5,26.95247969]
[1673626899733,7.59981474,1411.6,1411.5,28.01041909]
[1673626900471,7.59981474,1411.6,1411.5,31.01041909]
[1673626900683,7.59981474,1411.6,1411.5,32.72909756]
[1673626902956,7.59981474,1411.6,1411.5,34.32009756]
[1673626903421,7.59781474,1411.6,1411.5,34.32009756]
[1673626903641,7.59981474,1411.6,1411.5,35.37169965]
[1673626904030,7.59981474,1411.6,1411.5,33.26215816]
[1673626904215,7.59981474,1411.6,1411.5,30.06715816]
[1673626904424,7.59981474,1411.6,1411.5,29.5397942]
[1673626904642,7.59981474,1411.6,1411.5,28.65942835]
[1673626904882,7.59981474,1411.6,1411.5,28.52761616]
[1673626905111,7.59981474,1411.6,1411.5,21.44295616]
[1673626905275,7.59981474,1411.6,1411.5,14.35829616]
[1673626905489,7.59981474,1411.6,1411.5,31.5451194]
[1673626905805,7.59981474,1411.6,1411.5,31.67693159]
[1673626906153,7.59981474,1411.6,1411.5,33.28093159]
[1673626906686,7.59981474,1411.6,1411.5,26.19627159]
[1673626906889,7.59981474,1411.6,1411.5,12.42515047]
[1673626907101,7.59981474,1411.6,1411.5,19.37799828]
[1673626907509,7.59981474,1411.6,1411.5,12.29333828]
[1673626907853,7.59981474,1411.6,1411.5,26.46265828]
[1673626908385,7.59981474,1411.6,1411.5,33.67913047]
[1673626908596,7.59981474,1411.6,1411.5,18.45030815]
[1673626908793,7.59981474,1411.6,1411.5,8.21633272]
[1673626909129,7.59981474,1411.6,1411.5,6.61233272]
[1673626909294,7.59981474,1411.6,1411.5,13.69699272]
[1673626909516,7.59981474,1411.6,1411.5,27.86631272]
[1673626909756,7.59981474,1411.6,1411.5,28.92581504]
[1673626909907,7.59981474,1411.6,1411.5,32.86515639]
[1673626910133,7.59981474,1411.6,1411.5,11.74298858]
[1673626910482,7.59981474,1411.6,1411.5,7.67183504]
[1673626911079,7.59981474,1411.6,1411.5,6.61233272]
[1673626911504,7.59981474,1411.6,1411.5,13.69699272]
[1673626911715,7.59981474,1411.6,1411.5,27.86631272]
[1673626911943,7.59981474,1411.6,1411.5,27.99812491]
[1673626912161,7.59981474,1411.6,1411.5,31.77879763]
[1673626914062,7.59981474,1411.6,1411.5,32.83829995]
[1673626914381,7.59981474,1411.6,1411.5,10.39300544]
[1673626914552,7.59981474,1411.6,1411.5,3.61233272]
[1673626914764,7.59981474,1411.6,1411.5,3.60633272]
[1673626915584,7.59981474,1411.6,1411.4,0.066]
[1673626915850,7.59981474,1411.6,1411.4,10.69132272]
[1673626916003,8.89615494,1411.6,1411.4,10.69732272]
[1673626916225,8.36475494,1411.6,1411.4,10.69732272]
[1673626916417,7.59981474,1411.6,1411.4,10.69732272]
[1673626917314,7.59981474,1411.6,1411.4,17.78248272]
[1673626917532,7.59981474,1411.6,1411.4,24.86764272]
[1673626917687,7.59981474,1411.6,1411.5,3.60633272]
[1673626918162,7.59981474,1411.6,1411.5,24.86031272]
[1673626918324,7.59981474,1411.6,1411.5,24.86631272]
[1673626918696,7.59981474,1411.6,1411.5,28.08062414]
[1673626919165,7.59981474,1411.6,1411.5,28.21243564]
[1673626919574,7.59981474,1411.6,1411.5,24.12777564]
[1673626919829,7.59981474,1411.6,1411.5,23.99596414]
[1673626919988,7.5977521,1411.6,1411.5,16.91130414]
[1673626921019,7.5977521,1411.6,1411.5,23.99596414]
[1673626922239,7.5977521,1411.6,1411.5,24.12777564]
[1673626922623,7.5977521,1411.6,1411.5,25.72577564]
[1673626922830,7.5977521,1411.6,1411.5,35.32499274]
[1673626923026,7.5977521,1411.6,1411.5,35.45680424]
[1673626923233,7.5977521,1411.6,1411.5,35.05080424]
[1673626924395,7.5977521,1411.6,1411.5,34.51397713]
[1673626925043,7.5977521,1411.6,1411.5,36.10413175]
[1673626925249,7.5977521,1411.6,1411.5,36.10414881]
[1673626925603,7.5977521,1411.6,1411.5,36.10414289]
[1673626926630,7.5977521,1411.6,1411.5,34.51397713]
[1673626926961,7.5977521,1411.6,1411.5,36.10421014]
[1673626928219,7.5977521,1411.6,1411.5,27.97015099]
[1673626928432,7.5977521,1411.6,1411.5,7.67247506]
[1673626928646,7.5977521,1411.6,1411.5,21.84179506]
[1673626928839,7.5977521,1411.6,1411.5,28.92645506]
[1673626929677,7.5977521,1411.6,1411.5,14.75713506]
[1673626929888,7.5977521,1411.6,1411.5,6.61233272]
[1673626930274,7.5977521,1411.6,1411.5,13.69699272]
[1673626930481,7.5977521,1411.6,1411.5,20.78165272]
[1673626930695,7.5977521,1411.6,1411.5,27.86631272]
[1673626930956,7.5977521,1411.6,1411.5,28.92645506]
[1673626931646,7.5977521,1411.6,1411.5,32.70577202]
[1673626931854,7.5977521,1411.6,1411.5,34.42793062]
[1673626932081,7.5977521,1411.6,1411.5,35.61993062]
[1673626932335,7.5977521,1411.6,1411.5,34.55967419]
[1673626933193,7.5977521,1411.6,1411.5,36.66921568]
[1673626933413,7.5977521,1411.6,1411.5,34.55967419]
[1673626934115,7.5977521,1411.6,1411.5,35.07898267]
[1673626934658,7.5977521,1411.6,1411.5,35.60636805]
[1673626934838,6.8379769,1411.6,1411.5,35.60636805]
[1673626935045,6.8379769,1411.6,1411.5,37.72752908]
[1673626935271,0.04958728,1411.7,1411.6,2.5]
[1673626935485,0.04958728,1411.7,1411.6,42.12898414]
[1673626935714,0.04958728,1411.7,1411.6,39.54378673]
[1673626935928,0.04958728,1411.7,1411.6,42.19329554]
[1673626936529,0.04958728,1411.7,1411.6,39.69329554]
[1673626936738,0.04958728,1411.7,1411.6,39.16333091]
[1673626936969,0.04958728,1411.7,1411.6,16.18213048]
[1673626937148,0.04958728,1411.7,1411.6,39.42231316]
[1673626937361,0.04958728,1411.7,1411.6,37.96433091]
[1673626937720,0.04958728,1411.7,1411.6,39.16633091]
[1673626937932,0.04958728,1411.7,1411.6,40.75582346]
[1673626938669,0.04958728,1411.7,1411.6,39.82854352]
[1673626939681,0.04958728,1411.7,1411.6,38.23905097]
[1673626939919,0.04958728,1411.7,1411.6,39.82821406]
[1673626940867,0.04958728,1411.7,1411.6,15.12164506]
[1673626941046,1.27758728,1411.7,1411.6,6.1508165]
[1673626941235,1.27758728,1411.7,1411.6,5.09139132]
[1673626941236,0.04958728,1411.7,1411.6,5.09139132]
[1673626941450,0.04958728,1411.7,1411.6,27.4032665]
[1673626941894,0.04958728,1411.7,1411.6,31.01096546]
[1673626942113,0.04958728,1411.7,1411.6,31.14277696]
[1673626942323,0.04958728,1411.7,1411.6,31.75425487]
[1673626942529,0.04958728,1411.7,1411.6,36.87379905]
[1673626942921,0.04958728,1411.7,1411.6,37.67163596]
[1673626944951,0.04958728,1411.7,1411.6,40.31969263]
[1673626945281,0.04958728,1411.7,1411.6,38.20160059]
[1673626945860,0.03256849,1411.7,1411.6,38.43160059]
[1673626946078,0.25412116,1411.8,1411.7,2.5]
[1673626946298,0.25412116,1411.8,1411.7,19.2798214]
[1673626946520,0.25412116,1411.8,1411.7,41.39966388]
[1673626946731,0.25412116,1411.8,1411.7,41.53147538]
[1673626946953,0.25412116,1411.8,1411.7,42.94389325]
[1673626947562,0.052,1412.1,1411.8,6.79438933]
[1673626947812,21.089,1412.8,1412.1,2.5]
[1673626947967,29.772,1412.8,1412.4,3.60633272]
[1673626948170,29.772,1412.8,1412.5,13.76755272]
[1673626948385,29.772,1412.8,1412.6,3.68801272]
[1673626948610,0.066,1412.8,1412.7,3.68800272]
[1673626948910,2.5309,1412.9,1412.7,3.68800272]
[1673626949119,2.5309,1412.9,1412.8,0.08167]
[1673626949329,17.88818,1412.9,1412.8,0.08167]
[1673626949590,17.95418,1412.9,1412.8,0.08167]
[1673626949809,0.13557874,1412.7,1412.2,0.066]
[1673626949977,0.531,1412.6,1412.2,3.60633272]
[1673626950181,21.23922,1412.5,1412.2,3.60633272]
[1673626950417,21.30522,1412.5,1412.2,3.60633272]
[1673626950621,21.30522,1412.5,1412.1,0.066]
[1673626950622,3.702,1412.4,1412.1,0.066]
[1673626950831,14.69285,1412.3,1412.0,0.16535379]
[1673626951040,35.74895,1412.3,1412.0,3.77168651]
[1673626951285,36.94095,1412.3,1412.0,3.77168651]
[1673626951589,21.5872,1412.3,1412.0,3.77168651]
[1673626951801,21.5872,1412.3,1412.1,3.60633272]
[1673626952117,28.66788,1412.3,1412.1,3.60633272]
[1673626952441,28.66802,1412.3,1412.1,3.60633272]
[1673626953029,2.404,1412.2,1412.0,0.23135379]
[1673626953233,3.1926,1412.1,1412.0,0.16535379]
[1673626953492,2.5,1412.0,1411.6,2.41233854]
[1673626953713,2.5,1412.0,1411.6,5.95267126]
[1673626953714,7.61405,1411.9,1411.6,5.95267126]
[1673626953872,0.5973,1411.9,1411.6,6.01867126]
[1673626954080,0.5313,1411.9,1411.6,6.01867126]
[1673626954322,0.5313,1411.9,1411.6,6.72635491]
[1673626955479,2.5,1411.8,1411.6,6.01867126]
[1673626955692,0.5973,1411.9,1411.6,6.01867126]
[1673626955872,0.5313,1411.9,1411.6,6.01867126]
[1673626957092,0.5313,1411.9,1411.6,13.10282126]
[1673626957268,0.5313,1411.9,1411.6,20.18697126]
[1673626957475,28.5132,1412.0,1411.6,20.18697126]
[1673626957697,23.5222,1412.0,1411.7,3.60633272]
[1673626958007,23.5222,1412.0,1411.8,7.08315]
[1673626958338,23.5222,1412.0,1411.8,7.14915]
[1673626958526,0.5973,1412.0,1411.8,7.14915]
[1673626958703,0.5313,1412.0,1411.8,3.67233272]
[1673626958918,0.5313,1412.0,1411.8,10.68935272]
[1673626959124,0.5313,1412.0,1411.8,17.83850272]
[1673626959379,30.6127,1412.1,1411.8,28.12216899]
[1673626959380,31.1439,1412.1,1411.8,28.12216899]
[1673626959594,31.1439,1412.1,1411.9,3.60633272]
[1673626959803,21.6788,1412.1,1412.0,3.60633272]
[1673626960021,0.066,1412.1,1412.0,3.60633272]
[1673626960333,0.5312,1412.2,1412.0,3.60633272]
[1673626961128,21.7753,1412.2,1411.9,0.066]
[1673626961338,2.5,1412.1,1411.7,0.066]
[1673626961701,7.08224,1412.0,1411.8,3.60633272]
[1673626961856,0.066,1412.0,1411.8,3.60633272]
[1673626962065,29.41483343,1412.1,1411.8,3.60633272]
[1673626962849,36.49675343,1412.1,1411.8,3.60633272]
[1673626963395,38.89521896,1412.1,1411.8,3.60633272]
[1673626964675,45.97713896,1412.1,1411.7,0.066]
[1673626964922,45.97713896,1412.1,1411.7,10.68990272]
[1673626965044,38.89521896,1412.1,1411.7,10.75590272]
[1673626965253,31.81329896,1412.1,1411.8,3.60633272]
[1673626965729,31.81329896,1412.1,1411.8,10.68943272]
[1673626965916,31.81329896,1412.1,1411.8,10.75543272]
[1673626966128,31.81329896,1412.1,1411.8,3.67233272]
[1673626966308,31.81329896,1412.1,1411.8,3.60633272]
[1673626967111,31.81329896,1412.1,1411.8,10.68948272]
[1673626967401,31.81329896,1412.1,1411.8,10.75548272]
[1673626967616,29.41483343,1412.1,1411.8,10.75548272]
[1673626968233,22.33291343,1412.1,1411.8,10.75548272]
[1673626968576,22.33291343,1412.1,1411.9,3.60633272]
[1673626968759,22.33291343,1412.1,1411.9,10.68894272]
[1673626969091,22.33291343,1412.1,1411.9,17.83759272]
[1673626969410,0.43881343,1412.1,1412.0,3.60633272]
[1673626969619,0.37281343,1412.1,1412.0,10.68848272]
[1673626969770,0.37281343,1412.1,1412.0,3.67233272]
[1673626969979,0.37281343,1412.1,1412.0,3.60633272]
[1673626970195,0.37281343,1412.1,1412.0,5.75859942]
[1673626970506,0.37281343,1412.1,1412.0,5.82459942]
[1673626971348,0.37281343,1412.1,1412.0,12.90674942]
[1673626971608,0.37281343,1412.1,1412.0,19.98889942]
[1673626971823,0.37281343,1412.1,1412.0,27.07104942]
[1673626971987,0.37281343,1412.1,1412.0,19.98889942]
[1673626972200,3.808,1412.3,1412.1,4.62497275]
[1673626972522,3.742,1412.3,1412.2,27.84975272]
[1673626972868,3.742,1412.3,1412.2,28.35790729]
[1673626973095,3.742,1412.3,1412.2,32.22005135]
[1673626974339,3.742,1412.3,1412.2,33.27724196]
[1673626974592,3.742,1412.3,1412.2,32.22005135]
[1673626975134,3.742,1412.3,1412.2,10.53447678]
[1673626975661,3.742,1412.3,1412.2,13.75347272]
[1673626976011,17.90328,1412.3,1412.2,3.67233272]
[1673626976342,3.808,1412.3,1412.1,0.19208281]
[1673626976501,3.742,1412.3,1412.1,10.81386553]
[1673626976711,3.742,1412.3,1412.1,10.87986553]
[1673626977039,3.742,1412.3,1412.1,17.96151553]
[1673626977253,3.742,1412.3,1412.1,10.87986553]
[1673626977514,3.742,1412.3,1412.2,3.60633272]
[1673626978169,3.742,1412.3,1412.2,24.84975272]
[1673626978392,3.742,1412.3,1412.2,24.91575272]
[1673626978544,3.742,1412.3,1412.2,19.03661272]
[1673626978754,3.742,1412.3,1412.2,26.11775272]
[1673626978996,3.742,1412.3,1412.2,22.61955853]
[1673626979210,3.742,1412.3,1412.2,29.70069853]
[1673626979406,3.742,1412.3,1412.2,22.61955853]
[1673626979806,10.82264,1412.3,1412.2,3.67233272]
[1673626980015,17.96928,1412.3,1412.2,3.60633272]
[1673626980225,17.96928,1412.3,1412.1,0.19208281]
[1673626980493,17.96928,1412.3,1412.1,0.12608281]
[1673626980494,9.58114,1412.2,1412.1,0.12608281]
[1673626980657,1.294,1412.2,1412.1,0.12608281]
[1673626980870,1.228,1412.2,1412.1,0.12608281]
[1673626981097,3.228,1412.2,1412.1,0.12608281]
[1673626981486,1.228,1412.2,1412.1,0.12608281]
[1673626981953,3.808,1412.3,1412.1,0.12608281]
[1673626982171,3.742,1412.3,1412.1,14.28938281]
[1673626982376,3.742,1412.3,1412.1,27.08634479]
[1673626982751,3.742,1412.3,1412.2,3.60633272]
[1673626982957,3.742,1412.3,1412.2,10.68747272]
[1673626983284,3.742,1412.3,1412.2,10.75347272]
[1673626983498,3.742,1412.3,1412.2,3.67233272]
[1673626983733,3.742,1412.3,1412.2,6.3149442]
[1673626984037,3.742,1412.3,1412.2,20.5432242]
[1673626984269,3.742,1412.3,1412.2,27.6243642]
[1673626985110,3.742,1412.3,1412.2,31.8163642]
[1673626985324,3.742,1412.3,1412.2,32.25994049]
[1673626986465,3.742,1412.3,1412.2,25.17880049]
[1673626986637,3.742,1412.3,1412.2,24.7352242]
[1673626989623,3.742,1412.3,1412.2,10.68747272]
[1673626989799,3.742,1412.3,1412.2,10.75347272]
[1673626991274,3.742,1412.3,1412.2,17.83461272]
[1673626991836,3.742,1412.3,1412.2,10.75347272]
[1673626992780,3.742,1412.3,1412.2,17.83461272]
[1673626992987,3.742,1412.3,1412.2,21.04694027]
[1673626993199,3.742,1412.3,1412.2,28.12808027]
[1673626993928,3.742,1412.3,1412.2,21.04694027]
[1673626994150,3.742,1412.3,1412.2,28.12808027]
[1673626994764,3.742,1412.3,1412.2,29.62901998]
[1673626995670,3.742,1412.3,1412.2,29.18527088]
[1673626995881,3.742,1412.3,1412.2,29.62901998]
[1673626996722,3.73815053,1412.3,1412.2,29.62901998]
[1673626996928,3.73815053,1412.3,1412.2,33.37827088]
[1673626997157,3.73815053,1412.3,1412.2,35.40926782]
[1673626997462,5.21e-06,1412.3,1412.2,34.35207721]
[1673626997682,5.21e-06,1412.3,1412.2,41.74784591]
[1673626998103,5.21e-06,1412.3,1412.2,43.73624989]
[1673626998347,0.07403739,1412.6,1412.4,21.24042]
[1673626998556,0.07403739,1412.6,1412.5,24.08265472]
[1673626998770,0.07403739,1412.6,1412.5,24.14865472]
[1673626999107,0.07403739,1412.6,1412.5,22.3730365]
[1673627002507,0.07403739,1412.6,1412.5,37.7223165]
[1673627002975,0.07403739,1412.6,1412.5,30.6426765]
[1673627003713,0.07403739,1412.6,1412.5,13.1693545]
[1673627003946,7.15317739,1412.6,1412.5,13.1693545]
[1673627004077,0.14003739,1412.6,1412.5,13.1693545]
[1673627004291,7.15317739,1412.6,1412.5,13.1693545]
[1673627004551,7.15317739,1412.6,1412.5,9.56302178]
[1673627004552,0.14003739,1412.6,1412.5,9.56302178]
[1673627004761,0.07403739,1412.6,1412.5,9.56302178]
[1673627005549,0.07403739,1412.6,1412.5,6.56302178]
[1673627005762,16.189143,1412.6,1412.5,6.56302178]
[1673627005974,14.075003,1412.6,1412.5,0.066]
[1673627006245,14.075003,1412.6,1412.3,0.00199479]
[1673627006406,12.873003,1412.6,1412.3,0.00199479]
[1673627007073,3.692,1412.5,1412.3,0.00199479]
[1673627007289,6.0564143,1412.5,1412.3,0.00199479]
[1673627007497,6.1224143,1412.5,1412.3,0.00199479]
[1673627007670,4.9304143,1412.5,1412.3,7.08261479]
[1673627007876,3.293863,1412.6,1412.3,21.30989479]
[1673627008128,3.293863,1412.6,1412.4,3.60633272]
[1673627008129,0.07403739,1412.6,1412.4,3.60633272]
[1673627008498,0.07403739,1412.6,1412.4,10.68629272]
[1673627008714,0.07403739,1412.6,1412.4,10.75229272]
[1673627009817,0.07403739,1412.6,1412.4,10.75004734]
[1673627010915,0.07403739,1412.6,1412.4,0.066]
[1673627010916,14.23231739,1412.6,1412.4,0.066]
[1673627011125,7.21917739,1412.6,1412.3,3.00199479]
[1673627011388,24.92148878,1412.6,1412.3,0.00199479]
[1673627011571,25.45248878,1412.6,1412.3,0.00199479]
[1673627011967,7.08014,1412.4,1412.3,0.00199479]
[1673627012172,0.066,1412.4,1412.3,0.00199479]
[1673627012493,1.228,1412.4,1412.3,0.00199479]
[1673627012742,29.9081,1412.5,1412.3,5.02471699]
[1673627012964,29.9081,1412.5,1412.3,19.25199699]
[1673627012965,21.0303,1412.5,1412.3,19.25199699]
[1673627013287,0.066,1412.5,1412.3,19.25199699]
[1673627013590,0.07403739,1412.6,1412.3,19.25199699]
[1673627013808,2.57403739,1412.6,1412.3,12.17135699]
[1673627014025,9.65320739,1412.6,1412.3,3.67432751]
[1673627014176,16.79837739,1412.6,1412.3,3.60832751]
[1673627014590,9.71920739,1412.6,1412.3,3.60832751]
[1673627015164,9.71920739,1412.6,1412.3,10.68883751]
[1673627015165,7.21917739,1412.6,1412.3,10.68883751]
[1673627015409,0.14003739,1412.6,1412.3,17.83547751]
[1673627015732,0.07403739,1412.6,1412.3,17.83547751]
[1673627015913,0.07403739,1412.6,1412.3,20.59144842]
[1673627016124,0.07403739,1412.6,1412.4,3.60633272]
[1673627016319,0.07403739,1412.6,1412.5,21.23892]
[1673627016512,0.07403739,1412.6,1412.5,7.14564]
[1673627018666,0.07403739,1412.6,1412.5,14.22528]
[1673627020627,0.07403739,1412.6,1412.5,16.75719277]
[1673627020878,0.07403739,1412.6,1412.5,27.44316549]
[1673627021093,0.07403739,1412.6,1412.5,28.90831315]
[1673627021250,0.07403739,1412.6,1412.5,21.82867315]
[1673627021465,0.07403739,1412.6,1412.5,28.90831315]
[1673627021708,0.07403739,1412.6,1412.5,21.82867315]
[1673627021915,7.15317739,1412.6,1412.5,4.08008775]
[1673627022130,0.14003739,1412.6,1412.5,3.60633272]
[1673627022354,0.07403739,1412.6,1412.4,8.20319263]
[1673627022515,0.07403739,1412.6,1412.4,11.80952535]
[1673627022729,0.07403739,1412.6,1412.4,3.67233272]
[1673627022972,7.15319739,1412.6,1412.4,3.60633272]
[1673627023165,0.14003739,1412.6,1412.4,3.60633272]
[1673627023511,0.07403739,1412.6,1412.4,10.68646272]
[1673627023826,0.07403739,1412.6,1412.4,13.96608633]
[1673627024645,0.07403739,1412.6,1412.4,21.04622633]
[1673627024835,0.07403739,1412.6,1412.4,10.75246272]
[1673627025283,21.31167739,1412.6,1412.4,0.066]
[1673627025495,23.6225381,1412.6,1412.3,0.00199479]
[1673627025820,2.5,1412.5,1412.3,0.00199479]
[1673627026033,7.07965,1412.5,1412.3,0.00199479]
[1673627026227,0.066,1412.5,1412.4,3.60633272]
[1673627026443,2.57403739,1412.6,1412.4,3.60633272]
[1673627027291,0.07403739,1412.6,1412.4,24.84651272]
[1673627027611,0.07403739,1412.6,1412.5,4.80833272]
[1673627027768,0.07403739,1412.6,1412.5,2.83739053]
[1673627027981,0.07403739,1412.6,1412.5,10.68597272]
[1673627028189,0.07403739,1412.6,1412.5,17.83161272]
[1673627028667,0.07403739,1412.6,1412.5,10.75197272]
[1673627028823,0.07403739,1412.6,1412.5,3.67233272]
[1673627029180,0.07403739,1412.6,1412.5,10.68597272]
[1673627029399,0.07403739,1412.6,1412.5,13.28393433]
[1673627029590,0.07403739,1412.6,1412.5,6.20429433]
[1673627030738,0.07403739,1412.6,1412.5,3.67233272]
[1673627030948,0.07403739,1412.6,1412.4,0.066]
[1673627031168,0.07403739,1412.6,1412.4,3.60633272]
[1673627031546,2.57403739,1412.6,1412.4,3.60633272]
[1673627032016,0.07403739,1412.6,1412.4,10.68641272]
[1673627032233,0.07403739,1412.6,1412.4,10.75241272]
[1673627032860,0.07403739,1412.6,1412.5,3.60633272]
[1673627033084,0.07403739,1412.6,1412.5,24.84525272]
[1673627033228,0.07403739,1412.6,1412.5,24.91125272]
[1673627033643,0.07403739,1412.6,1412.5,17.83161272]
[1673627034145,1.30203739,1412.6,1412.5,0.066]
[1673627034358,1.30203739,1412.6,1412.3,0.066]
[1673627034359,9.55624184,1412.6,1412.3,0.066]
[1673627034551,8.55123513,1412.6,1412.2,12.72459157]
[1673627034885,8.55123513,1412.6,1412.2,14.81083535]
[1673627034886,12.09609584,1412.6,1412.2,14.81083535]
[1673627035102,33.27499584,1412.6,1412.2,14.81083535]
[1673627035621,2.5,1412.5,1412.2,4.72972535]
[1673627035831,19.98716958,1412.5,1412.2,3.60633272]
[1673627035992,20.02702358,1412.5,1412.2,3.60633272]
[1673627036201,12.94702358,1412.5,1412.2,3.60633272]
[1673627036407,13.99188429,1412.5,1412.2,3.60633272]
[1673627037724,12.94702358,1412.5,1412.2,3.60633272]
[1673627038317,13.99188429,1412.5,1412.2,3.60633272]
[1673627038739,12.94702358,1412.5,1412.2,3.60633272]
[1673627039386,13.99188429,1412.5,1412.2,3.60633272]
[1673627040662,0.039854,1412.5,1412.2,10.68747272]
[1673627040882,1.04486071,1412.5,1412.2,17.83461272]
[1673627041185,27.99248793,1412.6,1412.2,24.91575272]
[1673627041342,26.99614691,1412.6,1412.2,25.32391609]
[1673627041556,29.19448793,1412.6,1412.2,11.16163609]
[1673627041821,2.91944879,1412.5,1412.2,10.75347272]
[1673627042009,2.91944879,1412.5,1412.2,3.67233272]
[1673627042010,9.99915879,1412.5,1412.2,3.67233272]
[1673627042341,6.5041635,1412.5,1412.2,3.60633272]
[1673627042658,6.5041635,1412.5,1412.2,10.68743272]
[1673627042849,13.5838035,1412.5,1412.2,10.75343272]
[1673627043181,13.5838035,1412.5,1412.2,3.67233272]
[1673627043392,2.5,1412.4,1412.1,3.11764494]
[1673627043707,29.4167335,1412.5,1412.1,11.74522535]
[1673627043912,2.5,1412.4,1412.1,11.81122535]
[1673627044446,1.2,1412.2,1412.1,0.066]
[1673627044603,1.2,1412.2,1411.8,2.70948157]
[1673627044604,9.70414,1412.2,1411.8,2.70948157]
[1673627044817,8.313994,1412.2,1411.7,2.70948157]
[1673627045076,1.3625994,1412.1,1411.8,1.05739263]
[1673627045432,0.8313994,1412.1,1411.8,1.05739263]
[1673627045552,10.4130594,1412.1,1411.7,2.64348157]
[1673627045768,18.7255734,1412.1,1411.8,1.05739263]
[1673627046120,18.7255734,1412.1,1411.7,1.05739263]
[1673627046438,14.1653,1411.9,1411.6,1.12339263]
[1673627046693,14.1653,1411.9,1411.5,1.18336103]
[1673627046694,14.205154,1411.9,1411.5,1.18336103]
[1673627046844,14.205154,1411.9,1411.5,6.37578269]
[1673627047177,15.61819248,1411.9,1411.5,6.44178269]
[1673627047369,15.61819248,1411.9,1411.5,4.85569375]
[1673627047701,1.2,1411.8,1411.5,1.5915244]
[1673627047861,1.2,1411.8,1411.5,1.18336103]
[1673627047862,8.81465,1411.8,1411.5,1.18336103]
[1673627048077,16.36510719,1411.8,1411.5,1.18336103]
[1673627048289,0.039854,1411.8,1411.5,4.78969375]
[1673627048523,9.5355,1411.9,1411.6,14.1683]
[1673627048734,0.571154,1411.9,1411.6,7.15015]
[1673627049076,0.5313,1411.9,1411.6,7.15015]
[1673627049234,7.61399,1411.9,1411.6,3.1844489]
[1673627049444,7.653844,1411.9,1411.6,3.1184489]
[1673627049756,7.653844,1411.9,1411.6,2.06105627]
[1673627049992,14.736534,1411.9,1411.5,1.24936103]
[1673627050208,21.819224,1411.9,1411.5,1.18336103]
[1673627050635,14.736534,1411.9,1411.5,0.1259684]
[1673627050850,21.819184,1411.9,1411.5,0.1259684]
[1673627051381,2.5,1411.8,1411.5,0.1259684]
[1673627051692,14.1673,1411.7,1411.5,0.1259684]
[1673627051856,21.290804,1411.7,1411.5,0.1259684]
[1673627052499,2.5,1411.6,1411.5,0.1259684]
[1673627052739,26.1315304,1411.6,1411.5,0.1259684]
[1673627052928,27.3623844,1411.6,1411.5,0.1259684]
[1673627053159,28.5623844,1411.6,1411.5,0.1259684]
[1673627053335,27.6013844,1411.6,1411.5,0.1259684]
[1673627053673,28.1327844,1411.6,1411.5,0.1259684]
[1673627055345,29.3347844,1411.6,1411.5,0.1259684]
[1673627056121,32.3347844,1411.6,1411.5,0.1259684]
[1673627056266,35.94111712,1411.6,1411.5,0.1259684]
[1673627057364,32.3347844,1411.6,1411.5,0.1259684]
[1673627057912,35.94111712,1411.6,1411.5,0.1259684]
[1673627065742,10.3209344,1411.6,1411.5,0.1259684]
[1673627065951,29.0733844,1411.6,1411.5,0.1259684]
[1673627067097,29.6047844,1411.6,1411.5,0.1259684]
[1673627068132,29.8347844,1411.6,1411.5,0.1259684]
[1673627071553,5.671854,1411.6,1411.5,0.1259684]
[1673627072088,25.722304,1411.6,1411.5,0.1259684]
[1673627072238,25.722304,1411.6,1411.5,0.12266962]